bitfinex-derivatives/quotes_BTCF0:USTF0_20250620
["timestamp","ask_amount","ask_price","bid_price","bid_amount"]
[1750462961766,0.29540012,103370.0,103360.0,1.65185621]
[1750462961963,0.55299673,103370.0,103360.0,1.65185621]
[1750462964464,0.55299683,103370.0,103360.0,1.65185621]
[1750462964667,0.35953583,103370.0,103360.0,1.65185621]
[1750462965774,0.61105257,103370.0,103360.0,1.65185621]
[1750462966074,0.61087638,103370.0,103360.0,1.65185621]
[1750462966272,0.81041725,103370.0,103360.0,0.0983]
[1750462966479,0.97964029,103370.0,103360.0,0.0044]
[1750462966772,0.1934796,103360.0,103350.0,0.7881661]
[1750462966966,0.81100956,103360.0,103350.0,1.3884461]
[1750462967167,0.81100956,103360.0,103350.0,1.3876461]
[1750462967367,0.73359345,103360.0,103350.0,0.7885661]
[1750462967567,0.84140956,103360.0,103350.0,0.7885661]
[1750462968473,0.76399345,103360.0,103350.0,0.7885661]
[1750462969074,0.73359345,103360.0,103350.0,0.7885661]
[1750462969276,0.73359345,103360.0,103350.0,0.7915661]
[1750462969973,0.21840023,103360.0,103350.0,0.7915661]
[1750462970173,0.73359345,103360.0,103350.0,0.6494861]
[1750462974884,0.73359345,103360.0,103350.0,0.2886861]
[1750462975080,0.73359345,103360.0,103350.0,0.6494861]
[1750462975384,0.79157331,103360.0,103350.0,0.6494861]
[1750462979492,0.79157331,103360.0,103350.0,0.2886861]
[1750462979692,0.79157331,103360.0,103350.0,0.6494861]
[1750462980192,0.79157331,103360.0,103350.0,0.2886861]
[1750462980488,0.79157331,103360.0,103350.0,0.6494861]
[1750462981387,0.5339767,103360.0,103350.0,0.6494861]
[1750462981591,0.27638009,103360.0,103350.0,0.6494861]
[1750462981797,0.79157331,103360.0,103350.0,0.90708271]
[1750462982491,0.73359345,103360.0,103350.0,0.90708271]
[1750462983988,0.21840023,103360.0,103350.0,0.90708271]
[1750462984193,0.73776752,103360.0,103350.0,0.6494861]
[1750462991393,0.2225743,103360.0,103350.0,0.6494861]
[1750462991596,0.73776752,103360.0,103350.0,0.6494861]
[1750462994303,0.2225743,103360.0,103350.0,0.90708271]
[1750462994493,0.73776752,103360.0,103350.0,0.90708271]
[1750462994798,0.73776752,103360.0,103350.0,0.6494861]
[1750462994998,0.73776752,103360.0,103350.0,0.90708271]
[1750462995201,0.73359345,103360.0,103350.0,0.90708271]
[1750462996199,0.73359345,103360.0,103350.0,0.6494861]
[1750462996901,0.21840023,103360.0,103350.0,0.6494861]
[1750462997099,0.73359345,103360.0,103350.0,0.6494861]
[1750462997494,0.54011385,103360.0,103350.0,0.6494861]
[1750462997800,0.81100956,103360.0,103350.0,0.6494861]
[1750462998399,0.81518363,103360.0,103350.0,0.6494861]
[1750463002397,0.81100956,103360.0,103350.0,0.6494861]
[1750463004307,0.29581634,103360.0,103350.0,0.6494861]
[1750463004504,0.81100956,103360.0,103350.0,0.6494861]
[1750463013210,0.73359345,103360.0,103350.0,0.6494861]
[1750463015014,0.81100956,103360.0,103350.0,0.6494861]
[1750463015216,0.81100956,103360.0,103350.0,0.2886861]
[1750463015411,0.81100956,103360.0,103350.0,0.6494861]
[1750463015617,0.73359345,103360.0,103350.0,0.6494861]
[1750463017718,0.81100956,103360.0,103350.0,0.6494861]
[1750463020620,0.73359345,103360.0,103350.0,0.6494861]
[1750463022112,0.81100956,103360.0,103350.0,0.6494861]
[1750463022318,0.73359345,103360.0,103350.0,0.6494861]
[1750463023923,0.81100956,103360.0,103350.0,0.6494861]
[1750463027827,0.29581634,103360.0,103350.0,0.6494861]
[1750463028025,0.81100956,103360.0,103350.0,0.6494861]
[1750463030227,0.29581634,103360.0,103350.0,0.6494861]
[1750463030430,0.81100956,103360.0,103350.0,0.6494861]
[1750463032028,0.81100956,103360.0,103350.0,0.7911261]
[1750463036626,0.73359345,103360.0,103350.0,0.7911261]
[1750463038030,0.21840023,103360.0,103350.0,0.7911261]
[1750463038230,0.73359345,103360.0,103350.0,0.7911261]
[1750463039332,0.54011385,103360.0,103350.0,0.7911261]
[1750463039536,0.0829807,103360.0,103350.0,1.04872271]
[1750463040030,0.34057731,103360.0,103350.0,1.04872271]
[1750463040231,0.0829807,103360.0,103350.0,1.04872271]
[1750463042331,0.34057731,103360.0,103350.0,1.04872271]
[1750463044232,0.34057731,103360.0,103350.0,0.68792271]
[1750463044441,0.34057731,103360.0,103350.0,1.40952271]
[1750463044647,0.34057731,103360.0,103350.0,0.68792271]
[1750463044831,0.34057731,103360.0,103350.0,1.40952271]
[1750463051139,0.31565668,103360.0,103350.0,1.40952271]
[1750463051346,0.34051819,103360.0,103350.0,1.40952271]
[1750463055144,0.34051819,103360.0,103350.0,0.68792271]
[1750463055336,0.34051819,103360.0,103350.0,1.40952271]
[1750463056135,0.34051819,103360.0,103350.0,0.68792271]
[1750463056332,0.34051819,103360.0,103350.0,1.40952271]
[1750463057246,0.53399789,103360.0,103350.0,1.26788271]
[1750463057445,0.53399789,103360.0,103350.0,2.00804271]
[1750463057646,0.31495786,103360.0,103350.0,2.00804271]
[1750463057842,0.57255447,103360.0,103350.0,2.00804271]
[1750463059038,0.45107631,103360.0,103350.0,2.00804271]
[1750463061347,0.25759661,103360.0,103350.0,2.00804271]
[1750463062244,0.45107631,103360.0,103350.0,2.00804271]
[1750463064847,0.45107631,103360.0,103350.0,1.0102861]
[1750463065047,0.3186804,103370.0,103360.0,0.1934797]
[1750463065246,0.57627701,103370.0,103360.0,0.90417631]
[1750463066353,0.57727701,103370.0,103360.0,0.90417631]
[1750463066953,0.57827701,103370.0,103360.0,0.90417631]
[1750463068751,0.65569312,103370.0,103360.0,0.90417631]
[1750463069651,0.68004031,103370.0,103360.0,0.90417631]
[1750463072956,0.6026242,103370.0,103360.0,0.90417631]
[1750463077553,0.29666239,103370.0,103360.0,0.90417631]
[1750463077758,0.554259,103370.0,103360.0,0.90417631]
[1750463078558,0.554259,103370.0,103360.0,1.04553631]
[1750463079061,0.554259,103370.0,103360.0,0.7879397]
[1750463079255,0.554259,103370.0,103360.0,1.04553631]
[1750463079757,0.554259,103370.0,103360.0,1.40633631]
[1750463083062,0.29666239,103370.0,103360.0,1.40633631]
[1750463083258,0.3607862,103370.0,103360.0,1.40633631]
[1750463083864,0.4188365,103370.0,103360.0,1.66393292]
[1750463084162,0.4188365,103370.0,103360.0,1.40633631]
[1750463086964,0.6122975,103370.0,103360.0,1.42368027]
[1750463087373,0.35470089,103370.0,103360.0,1.42368027]
[1750463087672,0.6122975,103370.0,103360.0,1.42368027]
[1750463090174,0.35470089,103370.0,103360.0,1.42368027]
[1750463090362,0.6122975,103370.0,103360.0,1.42368027]
[1750463093669,0.6122975,103370.0,103360.0,0.70208027]
[1750463093874,0.6122975,103370.0,103360.0,1.42368027]
[1750463094969,0.6122975,103370.0,103360.0,1.16608366]
[1750463095166,0.35470089,103370.0,103360.0,1.42368027]
[1750463095476,0.6122975,103370.0,103360.0,2.02140027]
[1750463097168,0.6122975,103370.0,103360.0,1.29980027]
[1750463097369,0.6122975,103370.0,103360.0,2.02140027]
[1750463097669,0.35470089,103370.0,103360.0,2.02140027]
[1750463097874,0.6122975,103370.0,103360.0,2.02140027]
[1750463100274,0.35470089,103370.0,103360.0,2.02140027]
[1750463100578,0.6122975,103370.0,103360.0,2.02140027]
[1750463101879,0.40159824,103370.0,103360.0,2.02140027]
[1750463102282,0.40159824,103370.0,103360.0,1.76380366]
[1750463102474,0.40159824,103370.0,103360.0,2.02140027]
[1750463103380,0.14400163,103370.0,103360.0,2.02140027]
[1750463103584,0.40159824,103370.0,103360.0,2.02140027]
[1750463105183,0.47806812,103370.0,103360.0,2.02140027]
[1750463109282,0.47806812,103370.0,103360.0,1.76380366]
[1750463109482,0.47806812,103370.0,103360.0,2.02140027]
[1750463113192,0.47806812,103370.0,103360.0,2.02108027]
[1750463114279,0.50160682,103370.0,103360.0,2.02108027]
[1750463118388,0.35760519,103370.0,103360.0,2.02108027]
[1750463118585,0.35760519,103370.0,103360.0,2.27867688]
[1750463118894,0.35760519,103370.0,103360.0,2.02108027]
[1750463119392,0.35760519,103370.0,103360.0,2.27867688]
[1750463120694,0.10000858,103370.0,103360.0,2.27867688]
[1750463120894,0.35760519,103370.0,103360.0,2.27867688]
[1750463121587,0.10000858,103370.0,103360.0,2.27867688]
[1750463121789,0.41567386,103370.0,103360.0,2.27867688]
[1750463122293,0.41567386,103370.0,103360.0,2.02108027]
[1750463123187,0.41567386,103370.0,103360.0,2.27867688]
[1750463125096,0.15807725,103370.0,103360.0,2.27867688]
[1750463125299,0.41567386,103370.0,103360.0,2.27867688]
[1750463126699,0.15807725,103370.0,103360.0,2.27867688]
[1750463126906,0.78150294,103380.0,103370.0,0.193461]
[1750463126907,0.24166898,103380.0,103370.0,0.193461]
[1750463127191,0.52944199,103400.0,103390.0,0.1934236]
[1750463127392,0.46230209,103400.0,103390.0,0.81182021]
[1750463127599,0.46230209,103400.0,103390.0,0.90482021]
[1750463127790,0.46230209,103400.0,103390.0,0.6472236]
[1750463128300,0.54033714,103400.0,103390.0,0.6472236]
[1750463128799,0.54233714,103400.0,103390.0,0.90482021]
[1750463129594,0.54433714,103400.0,103390.0,0.90482021]
[1750463130602,0.35092134,103400.0,103390.0,0.90482021]
[1750463130904,0.35092134,103400.0,103390.0,1.26562021]
[1750463131200,0.09332473,103400.0,103390.0,1.26562021]
[1750463131405,0.35092134,103400.0,103390.0,1.26562021]
[1750463132308,0.09332473,103400.0,103390.0,1.26562021]
[1750463132505,0.35092134,103400.0,103390.0,1.26562021]
[1750463133403,0.08303505,103400.0,103390.0,1.0080236]
[1750463133607,0.005,103400.0,103390.0,1.26562021]
[1750463136498,0.005,103400.0,103390.0,1.52321682]
[1750463137202,0.00917407,103400.0,103390.0,1.52321682]
[1750463137700,0.00917407,103400.0,103390.0,1.26562021]
[1750463138808,0.03251998,103400.0,103390.0,1.26562021]
[1750463139711,0.03251998,103400.0,103390.0,2.00358021]
[1750463141498,0.48352139,103400.0,103390.0,1.0080236]
[1750463141708,0.48352139,103400.0,103390.0,2.00390021]
[1750463142808,0.48352139,103400.0,103390.0,2.00386021]
[1750463144218,0.22592478,103400.0,103390.0,2.00386021]
[1750463144516,0.48352139,103400.0,103390.0,2.00386021]
[1750463148119,0.29011659,103400.0,103390.0,2.00386021]
[1750463151220,0.03251998,103400.0,103390.0,2.00386021]
[1750463151421,0.29011659,103400.0,103390.0,2.00386021]
[1750463155616,0.34791656,103400.0,103390.0,2.00386021]
[1750463156018,0.54132146,103400.0,103390.0,2.00386021]
[1750463158631,0.54132146,103400.0,103390.0,1.7462636]
[1750463158823,0.54132146,103400.0,103390.0,2.00386021]
[1750463159831,0.28372485,103400.0,103390.0,2.00386021]
[1750463160132,0.54132146,103400.0,103390.0,2.00386021]
[1750463160542,0.79891807,103400.0,103390.0,1.0084235]
[1750463160830,0.79891807,103400.0,103390.0,1.7455435]
[1750463161034,0.83031807,103400.0,103390.0,1.7459435]
[1750463161221,0.83031807,103400.0,103390.0,2.00354011]
[1750463161831,0.57272146,103400.0,103390.0,2.00354011]
[1750463162034,0.83031807,103400.0,103390.0,1.7459435]
[1750463162234,0.83031807,103400.0,103390.0,2.00354011]
[1750463162936,0.83031807,103400.0,103390.0,1.7459435]
[1750463163328,0.88961807,103400.0,103390.0,1.7459435]
[1750463163736,0.88961807,103400.0,103390.0,1.7455435]
[1750463164035,0.88961807,103400.0,103390.0,1.7459435]
[1750463165136,0.88961807,103400.0,103390.0,1.7153435]
[1750463166935,0.88961807,103400.0,103390.0,1.0560635]
[1750463167142,0.8318181,103400.0,103390.0,0.6948635]
[1750463167539,0.8318181,103400.0,103390.0,0.6952635]
[1750463169241,1.4286981,103400.0,103390.0,0.6952635]
[1750463169542,1.4286981,103400.0,103390.0,0.3344635]
[1750463169735,1.4286981,103400.0,103390.0,0.3340635]
[1750463170436,1.67036708,103400.0,103390.0,0.3340635]
[1750463170635,1.67036708,103400.0,103390.0,0.3344635]
[1750463171136,1.67036708,103400.0,103390.0,0.14104]
[1750463171338,2.10859666,103400.0,103390.0,0.1938235]
[1750463171539,2.03116708,103400.0,103390.0,0.1938235]
[1750463171742,2.10859666,103400.0,103390.0,0.1938235]
[1750463172445,2.03116708,103400.0,103390.0,0.1938235]
[1750463174944,2.03116708,103400.0,103390.0,0.0004]
[1750463175136,2.36619327,103400.0,103390.0,0.0004]
[1750463175437,0.1934235,103390.0,103380.0,0.3825445]
[1750463175644,0.73196263,103390.0,103380.0,0.3825445]
[1750463176735,0.73496263,103390.0,103380.0,0.3825445]
[1750463176931,0.53574463,103390.0,103380.0,0.3825445]
[1750463177139,0.72916813,103390.0,103380.0,0.3825445]
[1750463177643,0.73116813,103390.0,103380.0,0.3825445]
[1750463178644,0.47936602,103390.0,103380.0,0.3825445]
[1750463180838,0.48354009,103390.0,103380.0,0.3825445]
[1750463181148,0.7411367,103390.0,103380.0,0.3825445]
[1750463181846,0.48354009,103390.0,103380.0,0.3825445]
[1750463182346,0.48354009,103390.0,103380.0,0.7433445]
[1750463185246,0.22594348,103390.0,103380.0,0.7433445]
[1750463185444,0.48354009,103390.0,103380.0,0.7433445]
[1750463196259,0.48354009,103390.0,103380.0,1.00094111]
[1750463196961,0.29011659,103390.0,103380.0,1.00094111]
[1750463197166,0.29011659,103390.0,103380.0,1.01821887]
[1750463198564,0.29011659,103390.0,103380.0,1.61509887]
[1750463199261,0.09052023,103390.0,103380.0,1.61509887]
[1750463200454,0.08952023,103390.0,103380.0,1.61509887]
[1750463200965,0.08852023,103390.0,103380.0,1.61509887]
[1750463201167,0.08652023,103390.0,103380.0,1.61509887]
[1750463201360,0.08652023,103390.0,103380.0,1.87269548]
[1750463201569,0.02851998,103390.0,103380.0,2.31614348]
[1750463203261,0.02851998,103390.0,103380.0,2.06614348]
[1750463206267,0.14723698,103400.0,103390.0,0.1934235]
[1750463206468,0.34064168,103400.0,103390.0,1.01422011]
[1750463207456,0.34264168,103400.0,103390.0,1.01422011]
[1750463207659,0.34264168,103400.0,103390.0,0.7566235]
[1750463207865,0.34264168,103400.0,103390.0,1.01422011]
[1750463208066,0.34564168,103400.0,103390.0,1.04612011]
[1750463210170,0.34564168,103400.0,103390.0,1.64292011]
[1750463213666,0.60323829,103400.0,103390.0,0.6479235]
[1750463213867,0.60323829,103400.0,103390.0,1.3852835]
[1750463214575,0.69703829,103400.0,103390.0,1.3852835]
[1750463214977,0.69703829,103400.0,103390.0,1.3856835]
[1750463215272,0.69703829,103400.0,103390.0,0.4549]
[1750463215471,1.05783829,103400.0,103390.0,0.0004]
[1750463215676,0.1934235,103390.0,103380.0,1.451968]
[1750463215876,0.45102011,103390.0,103380.0,1.451968]
[1750463216278,0.81182011,103390.0,103380.0,0.2043]
[1750463216469,0.84649418,103390.0,103380.0,0.2051]
[1750463216669,0.87579418,103390.0,103380.0,0.2051]
[1750463216871,0.87568855,103390.0,103380.0,0.2043]
[1750463217071,0.87568855,103390.0,103380.0,0.3981422]
[1750463217979,0.87568855,103390.0,103380.0,0.2047]
[1750463218278,0.64157443,103390.0,103380.0,0.3981421]
[1750463218480,0.89906541,103390.0,103380.0,0.3981421]
[1750463220378,0.90106541,103390.0,103380.0,0.3981421]
[1750463220972,0.90406541,103390.0,103380.0,0.3981421]
[1750463221171,0.64657443,103390.0,103380.0,0.41538581]
[1750463221371,0.90406541,103390.0,103380.0,0.41538581]
[1750463225980,1.50082541,103390.0,103380.0,0.41538581]
[1750463227672,1.55874478,103390.0,103380.0,0.3981421]
[1750463230379,1.50082541,103390.0,103380.0,0.0004]
[1750463230586,0.1934421,103380.0,103370.0,0.3070212]
[1750463230780,0.59312371,103380.0,103370.0,0.3062212]
[1750463230979,0.59312371,103380.0,103370.0,0.3066212]
[1750463231576,0.59312371,103380.0,103370.0,0.3377212]
[1750463233081,0.59512371,103380.0,103370.0,0.3377212]
[1750463233887,0.59812371,103380.0,103370.0,0.3377212]
[1750463235190,0.56882371,103380.0,103370.0,0.3377212]
[1750463235376,0.53722371,103380.0,103370.0,0.3377212]
[1750463236884,0.79472803,103380.0,103370.0,0.3377212]
[1750463238892,0.53722991,103380.0,103370.0,0.3377212]
[1750463240593,0.53222991,103380.0,103370.0,0.3377212]
[1750463240793,0.53640398,103380.0,103370.0,0.3377212]
[1750463242594,0.53640398,103380.0,103370.0,0.6985212]
[1750463244587,0.47849021,103380.0,103370.0,0.6985212]
[1750463247997,0.53649799,103380.0,103370.0,0.6985212]
[1750463248684,0.27900081,103380.0,103370.0,0.6985212]
[1750463248888,0.53649799,103380.0,103370.0,0.6985212]
[1750463251299,0.47849021,103380.0,103370.0,0.6985212]
[1750463253202,0.45511335,103380.0,103370.0,0.6985212]
[1750463253406,0.4787707,103380.0,103370.0,0.6985212]
[1750463257904,0.22127352,103380.0,103370.0,0.6985212]
[1750463258107,0.4787707,103380.0,103370.0,0.6985212]
[1750463261019,0.73628628,103380.0,103370.0,0.6985212]
[1750463263520,0.73628628,103380.0,103370.0,0.3377212]
[1750463263725,0.73628628,103380.0,103370.0,0.6985212]
[1750463264216,0.73628628,103380.0,103370.0,0.3377212]
[1750463264420,0.73628628,103380.0,103370.0,0.6985212]
[1750463268831,0.73628628,103380.0,103370.0,0.3377212]
[1750463269228,0.73628628,103380.0,103370.0,0.6985212]
[1750463276332,0.54284418,103380.0,103370.0,0.6985212]
[1750463276533,0.73628628,103380.0,103370.0,0.6985212]
[1750463276930,0.54284418,103380.0,103370.0,0.95602758]
[1750463277130,0.2853378,103380.0,103370.0,0.95602758]
[1750463277337,0.34339654,103380.0,103370.0,0.95602758]
[1750463278537,0.34339654,103380.0,103370.0,0.973452]
[1750463287145,0.34339654,103380.0,103370.0,0.612652]
[1750463287347,0.34339654,103380.0,103370.0,1.334252]
[1750463290838,0.34339654,103380.0,103370.0,1.07674562]
[1750463291038,0.34339654,103380.0,103370.0,1.334252]
[1750463292054,0.3433902,103380.0,103370.0,1.334252]
[1750463292850,0.5368325,103380.0,103370.0,1.334252]
[1750463293544,0.5368325,103380.0,103370.0,1.07674562]
[1750463293746,0.5368325,103380.0,103370.0,1.334252]
[1750463294943,0.51318149,103380.0,103370.0,1.334252]
[1750463295151,0.53683294,103380.0,103370.0,1.334252]
[1750463305454,0.34339064,103380.0,103370.0,1.334252]
[1750463306158,0.08588426,103380.0,103370.0,1.334252]
[1750463306551,0.34339064,103380.0,103370.0,1.334252]
[1750463308572,0.08588426,103380.0,103370.0,1.07674562]
[1750463308860,0.34339064,103380.0,103370.0,1.334252]
[1750463310249,0.34339064,103380.0,103370.0,1.07674562]
[1750463310450,0.34339064,103380.0,103370.0,1.334252]
[1750463311444,0.08588426,103380.0,103370.0,1.334252]
[1750463312051,0.02782552,103380.0,103370.0,1.334252]
[1750463312749,0.08588426,103380.0,103370.0,1.334252]
[1750463313558,0.02782552,103380.0,103370.0,1.334252]
[1750463314259,0.02782552,103380.0,103370.0,1.59175838]
[1750463315660,0.02782552,103380.0,103370.0,1.59375838]
[1750463316057,0.02782552,103380.0,103370.0,1.59575838]
[1750463316258,0.02782552,103380.0,103370.0,1.78923038]
[1750463316769,1e-08,103380.0,103370.0,2.03923038]
[1750463317063,0.05805874,103400.0,103390.0,0.1934236]
[1750463317258,0.05805874,103400.0,103390.0,1.90880998]
[1750463317456,0.05805874,103400.0,103390.0,2.00380998]
[1750463318356,0.06105874,103400.0,103390.0,2.00380998]
[1750463319169,0.003,103400.0,103390.0,2.00380998]
[1750463319771,0.005,103400.0,103390.0,2.00380998]
[1750463320675,0.26250638,103400.0,103390.0,2.00380998]
[1750463321273,0.26250638,103400.0,103390.0,1.7463036]
[1750463321474,0.26250638,103400.0,103390.0,2.00380998]
[1750463321779,0.005,103400.0,103390.0,2.00380998]
[1750463321980,0.26250638,103400.0,103390.0,2.00380998]
[1750463323876,0.71341766,103400.0,103390.0,1.0100236]
[1750463324079,0.71341766,103400.0,103390.0,1.7461836]
[1750463324373,0.7714764,103400.0,103390.0,1.7148836]
[1750463324577,0.8655764,103400.0,103390.0,1.6515836]
[1750463324768,0.8655764,103400.0,103390.0,0.9150236]
[1750463324962,0.8655764,103400.0,103390.0,0.9154236]
[1750463325167,0.8655764,103400.0,103390.0,0.9150236]
[1750463325471,0.8655764,103400.0,103390.0,0.5546236]
[1750463326373,0.64645586,103400.0,103390.0,0.5546236]
[1750463326576,0.83986076,103400.0,103390.0,0.5546236]
[1750463326871,0.1934236,103390.0,103380.0,0.7326008]
[1750463327068,0.57104687,103390.0,103380.0,0.7001008]
[1750463327271,0.57104687,103390.0,103380.0,0.6993008]
[1750463327475,0.57104687,103390.0,103380.0,0.6509412]
[1750463327966,0.82855325,103390.0,103380.0,0.6513412]
[1750463328375,0.82855325,103390.0,103380.0,0.2905412]
[1750463328572,1.78527325,103390.0,103380.0,0.0004]
[1750463328762,0.1934423,103380.0,103370.0,0.7634513]
[1750463328969,0.62870762,103380.0,103370.0,0.7001513]
[1750463329569,0.56870762,103380.0,103370.0,0.7001513]
[1750463329772,0.56870762,103380.0,103370.0,0.7634513]
[1750463329967,0.56453355,103380.0,103370.0,0.7634513]
[1750463330371,0.27489936,103380.0,103370.0,0.7664513]
[1750463331679,0.27489936,103380.0,103370.0,0.7674513]
[1750463332480,0.21697541,103380.0,103370.0,0.7674513]
[1750463337586,0.4745096,103380.0,103370.0,0.7674513]
[1750463342994,0.02353311,103380.0,103370.0,1.02498549]
[1750463343196,0.60560974,103390.0,103380.0,0.1934423]
[1750463343393,0.62904369,103390.0,103380.0,0.6480423]
[1750463344396,0.63004369,103390.0,103380.0,0.6480423]
[1750463345089,0.63104369,103390.0,103380.0,0.6480423]
[1750463345891,0.63104369,103390.0,103380.0,0.2872423]
[1750463346093,0.63104369,103390.0,103380.0,0.6480423]
[1750463348102,0.63104369,103390.0,103380.0,0.2872423]
[1750463348295,0.63104369,103390.0,103380.0,0.1934423]
[1750463348296,0.57311974,103390.0,103380.0,0.1934423]
[1750463348497,0.66441974,103390.0,103380.0,0.1938423]
[1750463348895,0.92191413,103390.0,103380.0,0.1938423]
[1750463349097,1.28271413,103390.0,103380.0,0.1938423]
[1750463350796,1.025191,103390.0,103380.0,0.1938423]
[1750463353501,1.025191,103390.0,103380.0,0.2252423]
[1750463353900,0.1934423,103380.0,103370.0,0.3534785]
[1750463354103,1.32764715,103380.0,103370.0,0.3534785]
[1750463354303,1.33182122,103380.0,103370.0,0.3840785]
[1750463354504,1.07431577,103380.0,103370.0,0.3844785]
[1750463355106,1.07431577,103380.0,103370.0,0.3864785]
[1750463355901,1.07431577,103380.0,103370.0,0.7472785]
[1750463356302,1.07431577,103380.0,103370.0,0.3864785]
[1750463356608,1.07431577,103380.0,103370.0,0.7472785]
[1750463357300,1.0701417,103380.0,103370.0,0.7472785]
[1750463358310,1.07431577,103380.0,103370.0,0.7472785]
[1750463359410,1.07427577,103380.0,103370.0,0.7472785]
[1750463360010,0.47855577,103380.0,103370.0,0.7472785]
[1750463360308,1.07427577,103380.0,103370.0,0.7472785]
[1750463363816,1.07427577,103380.0,103370.0,0.3864785]
[1750463364022,0.73606122,103380.0,103370.0,0.195849]
[1750463364319,1.4995708,103380.0,103370.0,0.195849]
[1750463365011,1.4995708,103380.0,103370.0,0.194849]
[1750463365315,1.4995708,103380.0,103370.0,0.195849]
[1750463365518,1.42214122,103380.0,103370.0,0.195849]
[1750463366615,1.78294122,103380.0,103370.0,0.195849]
[1750463366811,1.78394122,103380.0,103370.0,0.194849]
[1750463367010,1.78494122,103380.0,103370.0,0.193849]
[1750463367633,1.78494122,103380.0,103370.0,0.224249]
[1750463369835,1.78494122,103380.0,103370.0,0.223849]
[1750463370223,1.78494122,103380.0,103370.0,0.224249]
[1750463370422,1.78494122,103380.0,103370.0,0.223849]
[1750463370620,0.193461,103370.0,103360.0,0.6361453]
[1750463370935,0.89318651,103370.0,103360.0,0.3378453]
[1750463371230,0.8352004,103370.0,103360.0,0.3370453]
[1750463371419,0.8352004,103370.0,103360.0,0.3374453]
[1750463371824,0.8352004,103370.0,103360.0,0.3384453]
[1750463372024,0.4744004,103370.0,103360.0,0.6992453]
[1750463372421,0.27487707,103370.0,103360.0,0.6992453]
[1750463372620,0.53238252,103370.0,103360.0,0.6992453]
[1750463372826,0.53245091,103370.0,103360.0,0.6992453]
[1750463373736,0.53245091,103370.0,103360.0,0.7002453]
[1750463375629,0.53662498,103370.0,103360.0,0.7002453]
[1750463377228,1.0970167,103370.0,103360.0,0.0976]
[1750463377432,0.1934798,103360.0,103350.0,0.0008]
[1750463377641,1.94603527,103360.0,103350.0,0.0008]
[1750463377842,2.44878885,103360.0,103350.0,0.0008]
[1750463378043,0.1934985,103350.0,103340.0,0.09576763]
[1750463378244,1.17020065,103350.0,103340.0,0.09576763]
[1750463378441,1.17020065,103350.0,103340.0,0.09616763]
[1750463378748,1.17020065,103350.0,103340.0,0.28928483]
[1750463378940,1.17047699,103350.0,103340.0,0.28968483]
[1750463379338,1.17147699,103350.0,103340.0,0.28968483]
[1750463379535,1.17147699,103350.0,103340.0,0.09616763]
[1750463379536,1.09415647,103350.0,103340.0,0.09616763]
[1750463379736,1.09415647,103350.0,103340.0,0.28968473]
[1750463380540,1.09515647,103350.0,103340.0,0.28968473]
[1750463380745,1.09515647,103350.0,103340.0,0.65048473]
[1750463380746,0.11443367,103350.0,103340.0,0.65048473]
[1750463380936,0.9614667,103350.0,103340.0,0.65048473]
[1750463381132,0.9614667,103350.0,103340.0,0.66777705]
[1750463381334,0.43004031,103350.0,103340.0,0.30697705]
[1750463381543,0.06453367,103350.0,103340.0,1.52112906]
[1750463381741,0.25137803,103360.0,103350.0,0.1934984]
[1750463381939,0.50909004,103360.0,103350.0,0.5845984]
[1750463383245,0.51919253,103360.0,103350.0,0.5845984]
[1750463384047,0.59813453,103360.0,103350.0,0.5845984]
[1750463384237,0.59813453,103360.0,103350.0,0.5855984]
[1750463384846,0.59813453,103360.0,103350.0,0.2549984]
[1750463385738,0.59813453,103360.0,103350.0,0.6157984]
[1750463385939,0.59813453,103360.0,103350.0,0.6161984]
[1750463386550,0.59813453,103360.0,103350.0,0.2553984]
[1750463389652,1.02183453,103360.0,103350.0,0.0317]
[1750463390049,1.02183453,103360.0,103350.0,0.0313]
[1750463390550,1.02183453,103360.0,103350.0,0.0303]
[1750463390749,1.0270086,103360.0,103350.0,0.0307]
[1750463391051,1.0280086,103360.0,103350.0,0.0303]
[1750463391251,1.0280086,103360.0,103350.0,0.0307]
[1750463393047,0.97011397,103360.0,103350.0,0.0307]
[1750463393447,1.02802054,103360.0,103350.0,0.2241983]
[1750463393649,1.05126761,103360.0,103350.0,0.2241983]
[1750463393849,1.64686761,103360.0,103350.0,0.2241983]
[1750463395458,1.58896104,103360.0,103350.0,0.2241983]
[1750463395758,1.58896104,103360.0,103350.0,0.0307]
[1750463395959,1.58896104,103360.0,103350.0,0.2241983]
[1750463396256,1.58896104,103360.0,103350.0,0.0307]
[1750463396651,1.62206104,103360.0,103350.0,0.0303]
[1750463397053,1.62206104,103360.0,103350.0,0.0307]
[1750463398650,1.69938156,103360.0,103350.0,0.0307]
[1750463400752,1.62206104,103360.0,103350.0,0.0307]
[1750463402656,1.62206104,103360.0,103350.0,0.2241984]
[1750463402861,1.22816104,103360.0,103350.0,0.2241984]
[1750463403056,1.22816104,103360.0,103350.0,0.2549984]
[1750463403461,1.16522104,103360.0,103350.0,0.2549984]
[1750463403966,1.16104697,103360.0,103350.0,0.2549984]
[1750463404963,1.16522104,103360.0,103350.0,0.2549984]
[1750463405759,1.52602104,103360.0,103350.0,0.2549984]
[1750463407061,1.55832104,103360.0,103350.0,0.2549984]
[1750463410266,1.55414697,103360.0,103350.0,0.2549984]
[1750463410662,1.63146749,103360.0,103350.0,0.2549984]
[1750463411068,1.63564156,103360.0,103350.0,0.2549984]
[1750463416772,1.60334156,103360.0,103350.0,0.2549984]
[1750463424984,1.60334156,103360.0,103350.0,0.2875984]
[1750463429385,1.00778156,103360.0,103350.0,0.2875984]
[1750463429590,1.60314156,103360.0,103350.0,0.2875984]
[1750463430785,1.86070929,103360.0,103350.0,0.27501253]
[1750463431883,1.32824929,103360.0,103350.0,0.27501253]
[1750463432082,1.92356929,103360.0,103350.0,0.27501253]
[1750463436085,1.92356929,103360.0,103350.0,0.27501243]
[1750463436379,1.92356929,103360.0,103350.0,0.04891413]
[1750463436786,1.92356929,103360.0,103350.0,0.01811413]
[1750463437599,2.18120916,103360.0,103350.0,0.01811413]
[1750463439894,2.18120916,103360.0,103350.0,0.21161243]
[1750463443095,1.40828955,103360.0,103350.0,0.01811413]
[1750463443297,2.18120916,103360.0,103350.0,0.01811413]
[1750463443595,2.19083042,103360.0,103350.0,0.01811413]
[1750463444294,2.19083042,103360.0,103350.0,0.21161243]
[1750463445512,2.19083042,103360.0,103350.0,0.01811413]
[1750463446896,2.20911093,103360.0,103350.0,0.01811413]
[1750463447999,2.20911093,103360.0,103350.0,0.21161253]
[1750463448499,2.20493686,103360.0,103350.0,0.21161253]
[1750463448905,2.20493686,103360.0,103350.0,0.01811413]
[1750463449695,0.1934983,103350.0,103340.0,0.43330603]
[1750463449907,0.73202511,103350.0,103340.0,0.43330603]
[1750463450089,0.73202511,103350.0,103340.0,0.43410603]
[1750463451004,0.73202511,103350.0,103340.0,0.43510603]
[1750463451307,0.73202511,103350.0,103340.0,0.43610603]
[1750463452497,0.80934563,103350.0,103340.0,0.43610603]
[1750463456706,0.80934563,103350.0,103340.0,0.79690603]
[1750463458407,0.29406589,103350.0,103340.0,0.79690603]
[1750463458601,0.47438524,103350.0,103340.0,0.79690603]
[1750463459307,1.06950524,103350.0,103340.0,0.79690603]